[Event "4NCL Div 2 2024-25"]
[Site "England"]
[Date "2025.02.15"]
[Round "5.4"]
[White "Pitcher, John"]
[Black "Alizada, Eldar"]
[Result "1/2-1/2"]
[Annotator "TA"]
[ECO "C00"]
[WhiteElo "2147"]
[BlackElo "1998"]
[PlyCount "119"]
[EventDate "2024.11.23"]
[EventType "team-tourn"]
[EventCountry "ENG"]
[SourceTitle "playchess.com"]
[Source "ChessBase"]
[SourceQuality "1"]
[TimeControl "40/6000+30:3000+30"]

{[%evp 17,119,2,11,0,0,-9,45,24,39,0,92,75,147,145,145,137,144,142,142,151,155,152,153,151,179,175,185,137,184,179,191,174,183,183,434,213,486,172,185,152,167,163,183,164,172,170,163,156,160,156,179,140,140,140,140,140,154,147,219,129,129,129,147,157,158,162,158,162,156,146,160,169,164,0,141,127,167,116,127,112,119,51,122,122,130,122,122,61,61,61,83,61,61,25,61,0,35,35,36,36,37,37,37,37]} 1. e4 {[%emt 0:10:22]} e6 {[%emt 0:10:12]} 2. d3 {[%emt 0:00:32]} d5 {[%emt 0:00:15]} 3. Nd2 {[%emt 0:00:08]} Nf6 {[%emt 0:00:19]} 4. Ngf3 {[%emt 0:00:08]} c5 {[%emt 0:01:32]} 5. g3 {[%emt 0:00:18]} Nc6 {[%emt 0:00:24]} 6. Bg2 {[%emt 0:00:08]} Be7 {[%emt 0:00:16]} 7. O-O {[%emt 0:00:15]} O-O {[%emt 0:00:04]} 8. Re1 {[%emt 0:00:19]} b5 {[%emt 0:00:39]} 9. a4 {[%emt 0:08:04]} b4 {[%emt 0:00:32]} 10. exd5 {[%emt 0:01:04] C00: French: Unusual White 2nd moves.} exd5 {[%emt 0:01:06]} 11. Nb3 {[%emt 0:00:53]} Rb8 $146 {[%emt 0:12:43]} (11... Bf5 $11) ({Predecessor:} 11... Bg4 12. h3 Bh5 13. g4 Bg6 14. Bf4 Rc8 15. Ne5 Nxe5 16. Bxe5 Bd6 17. Qd2 Bxe5 18. Rxe5 {1-0 Karjakin,S (2783)-Meier,G (2630) chess.com Speed 1m+1spm 2017 blitz (1.22)}) 12. Bf4 {[%emt 0:04:29]} Bd6 {[%emt 0:01:51]} 13. Qd2 {[%emt 0:02:00]} Bb7 {[%emt 0:18:51]} (13... Be6 $11 {remains equal.}) 14. Nh4 {[%emt 0:17:49]} Ne7 {[%emt 0:29:35] [#]} (14... Bc8 $142) 15. Bxd6 $1 $16 {[%emt 0:05:08]} Qxd6 {[%emt 0:00:03]} 16. Qe3 $1 {[%emt 0:00:26][%csl LRc5,LRe7]} Rfe8 {[%emt 0:04:36]} 17. Qxc5 {[%emt 0:03:24]} Qxc5 {[%emt 0:04:14]} 18. Nxc5 {[%emt 0:00:11]} Ba8 {[%emt 0:00:45]} 19. Nb3 {[%emt 0:08:22]} Rbc8 {[%emt 0:02:17]} 20. Nd4 {[%emt 0:01:34]} g5 {[%emt 0:01:30]} 21. Nhf3 {[%emt 0:01:01]} h6 {[%emt 0:00:02]} 22. Ne5 {[%emt 0:04:08]} (22. a5 $18) 22... Rc7 {[%emt 0:02:54]} (22... Nc6 $16 23. Nexc6 Rxe1+ 24. Rxe1 Bxc6) 23. Re2 $18 {[%emt 0:02:38]} a6 {[%emt 0:05:17]} 24. Rae1 {[%emt 0:03:01]} Kf8 {[%emt 0:00:45]} 25. Bh3 {[%emt 0:03:33]} Rb8 $2 {[%emt 0:01:47] [#]} (25... Bb7 26. a5 Bc8 27. Bxc8 Rexc8) 26. b3 {[%emt 0:01:10]} (26. Nd7+ $142 Rxd7 27. Bxd7) 26... Rb6 $2 {[%emt 0:00:58]} (26... Nc6 27. Nexc6 Bxc6) 27. Rf1 $2 {[%emt 0:02:26]} (27. Nd7+ Rxd7 28. Bxd7) 27... h5 {[%emt 0:01:28]} 28. Bg2 {[%emt 0:03:09]} Bb7 {[%emt 0:01:25]} 29. Nef3 {[%emt 0:03:27]} g4 {[%emt 0:00:46]} 30. Ne5 {[%emt 0:00:12]} Bc8 {[%emt 0:00:27]} 31. f3 {[%emt 0:01:28]} Kg7 {[%emt 0:01:13]} 32. fxg4 {[%emt 0:01:05]} hxg4 {[%emt 0:00:15]} 33. Rf4 {[%emt 0:02:39] White has more active pieces.} Rd6 {[%emt 0:01:51]} 34. Ref2 {[%emt 0:03:13]} Ng6 {[%emt 0:01:35]} 35. Nxg6 {[%emt 0:00:14]} Kxg6 {[%emt 0:00:16]} 36. Re2 {[%emt 0:00:26]} Nh5 {[%emt 0:02:19][%cal Bf6h5,Bh5g7,Bg7f5][%mdl 32]} 37. Rff2 {[%emt 0:01:31]} f6 {[%emt 0:00:55]} (37... Be6 $16 {is a better defense.} 38. Re5 Nf6) 38. Kf1 {[%emt 0:04:53]} (38. Re8 $18) 38... Ng7 $16 {[%emt 0:00:22]} 39. Ke1 {[%emt 0:01:02]} Nf5 {[%emt 0:01:20]} 40. Rf4 {[%emt 0:01:52]} Ng7 {[%emt 0:01:51]} 41. Kd2 {[%emt 0:54:38]} Nh5 {[%emt 0:22:08]} 42. Rf1 {[%emt 0:00:00]} Ng7 {[%emt 0:00:36]} 43. Ref2 {[%emt 0:00:00]} Bd7 {[%emt 0:05:18]} 44. Ne2 {[%emt 0:00:00]} Nh5 {[%emt 0:04:14]} 45. Nd4 {[%emt 0:00:00]} Ng7 {[%emt 0:00:06] Prevents Nf5.} 46. Re1 {[%emt 0:00:00]} Bc8 {[%emt 0:03:57]} 47. Rfe2 {[%emt 0:00:00]} (47. Rh1 $18) 47... Nf5 {[%emt 0:01:17]} 48. Nxf5 {[%emt 0:00:00]} Bxf5 {[%emt 0:01:05]} 49. Rf1 {[%emt 0:00:00]} (49. Re7 $16 Rc5 50. Re8) 49... d4 {[%emt 0:05:38]} (49... Rdc6 $14 50. Rc1 (50. Bxd5 Rxc2+ 51. Ke1 Rc1+ 52. Kf2 R1c3 $11) 50... Rc5) 50. Rf4 {[%emt 0:00:00]} Rc5 {[%emt 0:01:40]} 51. Be4 {[%emt 0:04:01] Rxf5 would now be deadly.} Kg5 {[%emt 0:00:05]} 52. Ref2 {[%emt 0:01:08]} (52. Bxf5 $16 Rxf5 53. Rfe4) 52... Bd7 $14 {[%emt 0:01:35]} 53. Bg2 {[%emt 0:01:11]} a5 {[%emt 0:01:13]} 54. Kd1 {[%emt 0:00:50]} Re5 {[%emt 0:01:20]} 55. Re4 {[%emt 0:00:31]} Bc6 {[%emt 0:04:20]} 56. Ref4 {[%emt 0:04:13]} (56. Rxe5+ $14 fxe5 57. Bxc6 Rxc6 58. Rf7 (58. Rf8 Rh6 $11)) 56... Bxg2 {[%emt 0:00:42]} 57. Rxg2 {[%emt 0:00:02] White is slightly better.} f5 {[%emt 0:01:04]} 58. Kd2 {[%emt 0:00:42]} Rd7 {[%emt 0:00:42]} 59. Rgf2 {[%emt 0:00:18]} Rd6 {[%emt 0:00:15]} 60. Kd1 {[%emt 0:02:07] Black defended with fortune.   Weighted Error Value: White=0.29 (precise) /Black=0.27 (precise)   Mistake:       	White=8     	Black=8      Inaccurate:     	White=2     	Black=3      OK:         	White=18    	Black=18     Best:        	White=1     	Black=1      Strong:       	White=1     	---} 1/2-1/2

[Event "4NCL Div 2 2024-25"]
[Site "England"]
[Date "2025.02.15"]
[Round "5.4"]
[White "Purdon, Colin"]
[Black "Udovenko, Daniel"]
[Result "1/2-1/2"]
[Annotator "TA"]
[ECO "E91"]
[WhiteElo "1957"]
[BlackElo "1941"]
[PlyCount "196"]
[EventDate "2024.11.23"]
[EventType "team-tourn"]
[EventCountry "ENG"]
[SourceTitle "playchess.com"]
[Source "ChessBase"]
[SourceQuality "1"]
[TimeControl "40/6000+30:3000+30"]

{[%evp 13,196,27,56,19,28,30,33,12,18,29,13,-26,-27,-37,47,34,16,35,25,17,18,17,38,0,0,0,9,0,0,-12,0,-91,-91,-79,-91,-142,-137,-237,-149,-145,-131,-147,-153,-167,-125,-138,-145,-262,-141,-145,-145,-136,-81,-80,-66,-64,0,-175,-32,-32,-33,-35,-30,-204,0,-41,0,-168,-104,-107,-104,-103,-110,-116,-61,-59,-59,-59,-59,-59,-59,-59,-59,-60,-60,-60,-60,-60,-59,-60,-60,-60,-60,-60,-60,-60,-60,-60,-60,-60,-60,-60,-60,-60,0,-60,-60,-60,-60,-60,-60,-60,-60,-60,-60,-60,-60,-60,-60,-60,-48,-56,-48,-48,-48,-32,-35,-55,-8,-19,-8,-8,-8,-8,-8,-8,-8,-8,-8,-8,-8,-8,-8,-8,-8,-8,-8,-8,-8,-8,-8,-8,-8,-8,-8,-8,0,-8,-8,-8,0,0,0,0,0,0,0,0,0,0,0,0,0,0,0,-8,0,-8,0,0,0,0,0,0,0]} 1. d4 {[%emt 0:10:04]} Nf6 {[%emt 0:10:02]} 2. c4 {[%emt 0:00:09]} g6 {[%emt 0:00:03]} 3. Nc3 {[%emt 0:00:07]} Bg7 {[%emt 0:00:04]} 4. e4 {[%emt 0:00:10]} O-O {[%emt 0:00:05]} 5. Nf3 {[%emt 0:00:26]} d6 {[%emt 0:00:05]} 6. Be2 {[%emt 0:00:09]} e5 {[%emt 0:00:07]} 7. Be3 {[%emt 0:00:12]} Bg4 {[%emt 0:01:41]} 8. dxe5 {[%emt 0:07:58] E91: King's Indian: Classical: 6 Be2, unusual replies including 6...c5 and 6...Bg4.} Bxf3 {[%emt 0:00:27]} 9. Bxf3 {[%emt 0:00:16]} dxe5 {[%emt 0:00:19]} 10. Qb3 {[%emt 0:05:53] White is slightly better.} Nc6 {[%emt 0:09:57] Not much happening anymore} 11. Qxb7 {[%emt 0:07:43]} Nd4 {[%emt 0:02:24]} 12. Bxd4 {[%emt 0:00:32]} exd4 {[%emt 0:02:49]} 13. Nd5 {[%emt 0:01:53]} Nd7 $146 {[%emt 0:27:00] Black sacrificed a pawn} (13... Nxd5 $15 14. Qxd5 Rb8) ({Predecessor:} 13... Nxd5 14. Qxd5 Qe7 15. O-O Rfd8 16. Qa5 d3 17. Rad1 Bxb2 18. e5 Rab8 19. Bd5 Bxe5 {1-0 Kishnev,S (2495)-Rogers,I (2558) Bundesliga 0001 2000 (7.2)}) 14. Qxc7 {[%emt 0:18:01]} (14. b3 $5) 14... Qxc7 {[%emt 0:01:22]} 15. Nxc7 {[%emt 0:00:07]} Rac8 {[%emt 0:00:08][%cal Ba8c8,Bc8c4,Bc4c2,Bc2b2][%mdl 32]} 16. Nd5 {[%emt 0:05:18] Strongly threatening Ne7+.} Rxc4 {[%emt 0:00:51]} 17. O-O {[%emt 0:10:52]} Rc2 {[%emt 0:18:13]} 18. Rac1 {[%emt 0:01:49][%cal Ba1c1,Bc1c7,Bc7a7][%mdl 32]} Rxb2 {[%emt 0:04:18]} 19. Rc7 {[%emt 0:00:15][%csl LRa7,LRd7]} Ne5 {[%emt 0:01:09]} 20. Rxa7 {[%emt 0:00:42]} d3 {[%emt 0:02:20]} 21. Bd1 {[%emt 0:11:53]} Nc4 {[%emt 0:11:08]} 22. Bb3 {[%emt 0:09:29]} (22. Rd7 $11 {keeps the balance.}) 22... Nd2 $1 $17 {[%emt 0:00:30][%csl LRb3,LRe4,LRf1]} 23. Rd1 {[%emt 0:00:07]} Nxe4 {[%emt 0:00:51]} 24. Rxd3 {[%emt 0:05:12]} (24. Rd7 $142) 24... Nxf2 {[%emt 0:00:25]} 25. Ne7+ {[%emt 0:00:26]} Kh8 {[%emt 0:00:58]} 26. Rdd7 {[%emt 0:00:21]} Ne4 {[%emt 0:01:12]} 27. g3 {[%emt 0:04:54]} Ng5 {[%emt 0:06:29]} 28. Nc6 {[%emt 0:00:38][%cal Oh2h4]} Nf3+ {[%emt 0:01:15]} 29. Kf1 {[%emt 0:00:09]} Nxh2+ {[%emt 0:00:55][%csl Oa2,Og3] White has weak pawns} (29... Rxh2 $6 30. Nd8 $11) 30. Kg1 {[%emt 0:00:10]} (30. Ke1 $17 {was forced.}) 30... Nf3+ {[%emt 0:00:45]} (30... Re8 $19 {[%cal Re8e1]} 31. Re7 Rxe7 32. Rxe7 Bf8 (32... Nf3+ $2 33. Kf1 $17) 33. Bxf7 (33. Rxf7 Bc5+ 34. Kh1 Ng4 $19) 33... Bxe7 34. Nxe7 Kg7) 31. Kf1 {[%emt 0:00:08][%cal Oc6d8]} Nd2+ {[%emt 0:00:48]} 32. Kg1 {[%emt 0:03:35] [#]} Nxb3 {[%emt 0:01:29]} (32... Bh6 $142 $1 33. Rd3 Nxb3 34. axb3 Kg8) 33. axb3 {[%emt 0:00:07]} Rxb3 {[%emt 0:00:56]} 34. Kg2 {[%emt 0:00:26][%cal Oc6d8]} Kg8 {[%emt 0:00:57]} (34... Bf6 $15 35. Rxf7 Rb2+ 36. Kh3 Rxf7 37. Rxf7 Rf2) 35. Nd8 $2 {[%emt 0:02:18] [#]} (35. Ne7+ $11 Kh8 36. Nc6) 35... Rb2+ {[%emt 0:00:23]} (35... Be5 $1 $19 36. Nxf7 Rxg3+ 37. Kh1 Rh3+ 38. Kg2 Rh2+ 39. Kg1 Bf4) 36. Kh3 $15 {[%emt 0:02:06][%cal Od8e6]} Rf2 {[%emt 0:02:54]} 37. Ne6 $1 {[%emt 0:00:21]} Re8 {[%emt 0:00:36]} (37... fxe6 38. Rxg7+ Kh8 39. Rxh7+ Kg8 40. Rag7#) 38. Nf4 {[%emt 0:01:22]} (38. Re7 $1 $11 {and White is okay.} Rf8 39. Nxf8 Bxf8 40. Ra8) 38... Rf8 $2 {[%emt 0:01:42]} (38... g5 $19 39. Rxf7 Bd4) 39. Ne6 {[%emt 0:00:13]} Re8 {[%emt 0:01:14]} (39... fxe6 40. Rxg7+ Kh8 41. Rxh7+ Kg8 42. Rag7#) (39... Rb8 $15 40. Rab7 (40. Nd8 $2 Rb1 $19) 40... Re8) 40. Nf4 $19 {[%emt 0:00:13]} Bf8 {[%emt 0:01:04]} (40... Rf8 41. Ne6 $15) (40... g5 $19 41. Rxf7 Bd4) 41. Rxf7 $17 {[%emt 0:26:51]} g5 {[%emt 0:25:09]} 42. Rxh7 {[%emt 0:00:10]} gxf4 {[%emt 0:02:45]} 43. Rh4 {[%emt 0:03:35]} Re6 {[%emt 0:09:35]} (43... Bc5 44. Ra5 $15) (43... Bd6 $17 44. Rg4+ Kf8) 44. Rg4+ $15 {[%emt 0:03:49]} Kh8 {[%emt 0:00:10] and ...Rh6+ should not be overlooked} 45. Rxf4 {[%emt 0:00:39]} Rxf4 {[%emt 0:03:51]} 46. gxf4 {[%emt 0:00:07][%mdl 4096] Endgame KRB-KR} Re4 {[%emt 0:01:55]} 47. Kg4 {[%emt 0:04:53]} Bd6 {[%emt 0:01:43]} 48. Kf5 {[%emt 0:01:07]} Rxf4+ {[%emt 0:02:26]} 49. Ke6 {[%emt 0:00:26]} Bc5 {[%emt 0:02:37]} 50. Rb7 {[%emt 0:00:17]} Bd4 {[%emt 0:00:30]} 51. Kd5 {[%emt 0:00:31]} Bg7 {[%emt 0:00:16]} 52. Ra7 {[%emt 0:00:42]} Kh7 {[%emt 0:00:06]} 53. Ra6 {[%emt 0:00:57]} Bf6 {[%emt 0:00:13]} 54. Ra2 {[%emt 0:00:25]} Kg6 {[%emt 0:00:20]} 55. Ke6 {[%emt 0:01:31]} Re4+ {[%emt 0:01:13]} 56. Kd5 {[%emt 0:00:12]} Re1 {[%emt 0:00:05]} 57. Rc2 {[%emt 0:01:46]} Bg5 {[%emt 0:00:38]} 58. Rf2 {[%emt 0:00:53]} Bf6 {[%emt 0:05:22]} ({Better is} 58... Rc1 $15) 59. Rg2+ {[%emt 0:00:21]} ({White should play} 59. Rc2 $1 $11) 59... Kf7 {[%emt 0:00:33]} 60. Ra2 {[%emt 0:00:23]} Re5+ {[%emt 0:00:22]} 61. Kd6 {[%emt 0:00:51]} Re4 {[%emt 0:00:14]} 62. Ra7+ {[%emt 0:00:45]} Kg6 {[%emt 0:00:06]} 63. Ra2 {[%emt 0:00:08]} Bg5 {[%emt 0:00:06]} 64. Kd5 {[%emt 0:00:25]} Kf5 {[%emt 0:00:11]} 65. Rf2+ {[%emt 0:00:17]} Bf4 {[%emt 0:00:05]} 66. Rf1 {[%emt 0:00:10]} Re8 {[%emt 0:00:09]} 67. Rh1 {[%emt 0:01:55]} Rd8+ {[%emt 0:00:05]} 68. Kc4 {[%emt 0:00:14]} Ke4 {[%emt 0:00:14]} 69. Rh4 {[%emt 0:00:13]} Rc8+ {[%emt 0:00:13]} 70. Kb4 {[%emt 0:00:27]} Ke3 {[%emt 0:01:32]} (70... Rc1 $15 {was preferable.}) 71. Kb5 {[%emt 0:00:17] The position is equal.} Kf3 {[%emt 0:02:46]} 72. Rh3+ {[%emt 0:00:37]} Ke2 {[%emt 0:00:30]} 73. Rh4 {[%emt 0:01:45]} Ke3 {[%emt 0:00:27]} 74. Rh3+ {[%emt 0:00:32]} Kd4 {[%emt 0:00:22]} 75. Rh4 {[%emt 0:00:12]} Rf8 {[%emt 0:00:04]} 76. Rh5 {[%emt 0:01:31]} Be5 {[%emt 0:00:09]} 77. Rh4+ {[%emt 0:00:22]} Kd5 {[%emt 0:00:04]} 78. Rh5 {[%emt 0:00:10]} Rb8+ {[%emt 0:00:06]} 79. Ka5 {[%emt 0:00:12]} Ke6 {[%emt 0:01:07]} 80. Ka4 {[%emt 0:00:20]} Kd6 {[%emt 0:00:46]} 81. Rg5 {[%emt 0:00:33]} Kd5 {[%emt 0:01:25]} 82. Rh5 {[%emt 0:00:24]} Rb1 {[%emt 0:00:16][%cal Od5c4]} 83. Ka5 {[%emt 0:01:34]} Kd6 {[%emt 0:00:45]} 84. Ka4 {[%emt 0:00:15]} Kd5 {[%emt 0:00:32][%cal Od5c4] ( -> ...Kc4!)} 85. Ka5 {[%emt 0:00:19]} Rb2 {[%emt 0:00:24]} 86. Rg5 {[%emt 0:00:23]} Re2 {[%emt 0:00:33]} 87. Kb5 {[%emt 0:00:31]} Rc2 {[%emt 0:00:28]} 88. Rh5 {[%emt 0:00:18]} Rc5+ {[%emt 0:00:23]} 89. Kb4 {[%emt 0:00:18]} Kc6 {[%emt 0:00:36] ( -> ...Bc3+)} 90. Rh6+ {[%emt 0:00:56]} Bd6 {[%emt 0:00:08] ( -> ...Rh5+)} 91. Kb3 $1 {[%emt 0:00:11]} Rc1 {[%emt 0:00:37]} 92. Rg6 {[%emt 0:00:51]} Kd5 {[%emt 0:00:48]} 93. Rg2 {[%emt 0:01:08]} Bf4 {[%emt 0:00:15]} 94. Rc2 {[%emt 0:01:26]} Rb1+ {[%emt 0:00:10]} 95. Rb2 {[%emt 0:01:45]} Rg1 {[%emt 0:00:16]} 96. Rc2 {[%emt 0:00:43]} Rg8 {[%emt 0:00:44]} 97. Ka4 {[%emt 0:02:26]} Rb8 {[%emt 0:00:32]} 98. Ka3 {[%emt 0:00:36]} Kd4 {[%emt 0:00:46] White happily takes the draw.   Weighted Error Value: White=0.25 (precise) /Black=0.27 (precise)   Loses game:     	White=2     	---        Missed win:     	---       	Black=1      Mistake:       	White=4     	Black=10     Inaccurate:     	White=2     	Black=1      OK:         	White=33    	Black=32     Best:        	White=3     	Black=6      Strong:       	White=2     	Black=1} 1/2-1/2

[Event "4NCL Div 2 2024-25"]
[Site "England"]
[Date "2025.02.15"]
[Round "5.5"]
[White "Verbytski, Oleg"]
[Black "Dicen, Elis Denele"]
[Result "0-1"]
[Annotator "TA"]
[ECO "C54"]
[WhiteElo "1968"]
[BlackElo "2100"]
[PlyCount "79"]
[EventDate "2024.11.23"]
[EventType "team-tourn"]
[EventCountry "ENG"]
[SourceTitle "playchess.com"]
[Source "ChessBase"]
[SourceQuality "1"]
[TimeControl "40/6000+30:3000+30"]

{[%evp 12,79,30,22,35,0,0,0,4,-1,39,34,68,16,26,22,25,10,17,16,27,24,24,0,14,25,29,-45,-47,-73,-69,-86,-125,-89,-99,-112,-124,-162,-164,-126,-132,-244,-240,-247,-256,-256,-240,-829,-819,-769,-599,-748,-735,-629,-652,-945,-994,-972,-977,-938,-940,-1459,-1458,-1241,-1050,-29991,-29992,-29992,-29993,-29996]} 1. e4 {[%emt 0:10:06]} e5 {[%emt 0:10:09]} 2. Nf3 {[%emt 0:00:12]} Nc6 {[%emt 0:00:06]} 3. Bc4 {[%emt 0:00:35]} Nf6 {[%emt 0:00:14]} 4. d3 {[%emt 0:00:06]} Bc5 {[%emt 0:00:26]} 5. c3 {[%emt 0:00:26]} d6 {[%emt 0:00:57]} 6. O-O {[%emt 0:00:51]} O-O {[%emt 0:01:49]} 7. Re1 {[%emt 0:00:39]} a6 {[%emt 0:02:42] 7...Bb6 is the modern continuation. C54: Giuoco Piano: 4 c3 Nf6, main lines with 5 d4 and 5 d3.} 8. d4 {[%emt 0:00:17]} Ba7 {[%emt 0:03:36]} 9. h3 {[%emt 0:00:11]} h6 {[%emt 0:11:21] The position is equal.} 10. Be3 {[%emt 0:02:14]} Bd7 $146 {[%emt 0:08:35]} ({Predecessor:} 10... exd4 11. cxd4 d5 12. exd5 Nb4 13. Bd2 Nbxd5 14. Nc3 Be6 15. Bb3 c5 16. Rc1 cxd4 {0-1 Garcia Martin,M (2308)-Mamedjarova,T (2264) WchT (Women) Pool-A rapid 2021 (5.1)}) 11. Nbd2 {[%emt 0:01:11][%cal Bb1d2,Bd2f1,Bf1g3][%mdl 32]} Qe7 {[%emt 0:02:17]} 12. d5 {[%emt 0:05:31]} (12. Bd3 $14) 12... Nd8 {[%emt 0:01:19]} 13. Bxa7 {[%emt 0:00:29]} Rxa7 {[%emt 0:00:08]} 14. Bd3 {[%emt 0:05:38]} Nh5 {[%emt 0:06:47]} 15. Nf1 {[%emt 0:02:46]} Nf4 {[%emt 0:01:41]} 16. Ng3 {[%emt 0:04:15]} c6 {[%emt 0:03:57]} 17. c4 {[%emt 0:00:41]} cxd5 {[%emt 0:06:29]} 18. cxd5 {[%emt 0:00:47]} b5 {[%emt 0:00:46]} 19. b4 {[%emt 0:04:41]} ({White should play} 19. Rc1 $11) 19... a5 $15 {[%emt 0:04:15]} 20. bxa5 {[%emt 0:04:38][%cal Oa2a4]} Rxa5 {[%emt 0:02:20]} 21. Ne2 {[%emt 0:02:45] [#]} Nxd3 {[%emt 0:02:05]} 22. Qxd3 {[%emt 0:00:05]} Nb7 {[%emt 0:00:15]} 23. Nd2 {[%emt 0:05:00]} Nc5 {[%emt 0:00:50]} 24. Qe3 {[%emt 0:00:40]} Rfa8 {[%emt 0:01:51][%cal Oa5a3] Black has strong rooks and is better} 25. Nc1 {[%emt 0:03:09]} Ra3 {[%emt 0:01:40] Black is more active.} 26. Qe2 {[%emt 0:02:30]} (26. Ncb3 $17) 26... Qg5 $19 {[%emt 0:05:07]} 27. Nf3 {[%emt 0:02:49]} Qf4 {[%emt 0:02:59][%cal Od7h3]} 28. Nd2 {[%emt 0:03:31] [#]} Bxh3 $1 $40 {[%emt 0:18:58][%mdl 640] White is in trouble. White is weak on the dark squares} 29. gxh3 $2 {[%emt 0:03:00]} (29. Ncb3 Qg5 30. g3) (29. Ndb3 Qg5) 29... Rxh3 {[%emt 0:00:11]} 30. Nf1 {[%emt 0:04:01] Wards off Qh2+} Ra4 {[%emt 0:01:45]} 31. f3 {[%emt 0:03:18]} Rxf3 {[%emt 0:01:55][%cal Ra4e4]} 32. Qh2 {[%emt 0:02:10]} Qf6 {[%emt 0:02:10]} 33. Nd2 {[%emt 0:20:11]} Qg5+ {[%emt 0:02:12]} 34. Kh1 {[%emt 0:00:13]} Rf4 {[%emt 0:00:20][%cal Of4h4]} 35. Rg1 {[%emt 0:02:38]} Qf6 {[%emt 0:00:10][%cal Of4h4] White must now prevent ...Rh4!.} 36. Rg3 {[%emt 0:00:41]} Nxe4 {[%emt 0:01:04]} 37. Nxe4 {[%emt 0:02:18]} Raxe4 {[%emt 0:00:21]} 38. Qc2 {[%emt 0:01:29]} Rf1+ {[%emt 0:01:20]} 39. Kg2 {[%emt 0:00:11]} Ree1 {[%emt 0:00:28]} 40. Qh7+ {[%emt 0:07:06] Weighted Error Value: White=0.88/Black=0.13 (very precise)   Mistake:       	White=4     	---        Inaccurate:     	White=3     	Black=2      OK:         	White=5     	Black=10     Best:        	---       	Black=1} 0-1

[Event "4NCL Div 2 2024-25"]
[Site "England"]
[Date "2025.02.15"]
[Round "5.5"]
[White "Zakarian, Dimitrios Levon"]
[Black "Shek, Daniel"]
[Result "1-0"]
[Annotator "TA"]
[ECO "A61"]
[WhiteElo "1968"]
[BlackElo "1873"]
[PlyCount "49"]
[EventDate "2024.11.23"]
[EventType "team-tourn"]
[EventCountry "ENG"]
[SourceTitle "playchess.com"]
[Source "ChessBase"]
[SourceQuality "1"]
[TimeControl "40/6000+30:3000+30"]

{[%evp 14,49,46,41,87,72,84,87,93,31,169,178,243,237,222,222,233,184,225,216,211,211,218,213,201,178,202,197,211,148,147,120,181,189,238,127,205,172]} 1. d4 {[%emt 0:10:01]} Nf6 {[%emt 0:10:04]} 2. c4 {[%emt 0:00:08]} c5 {[%emt 0:00:03]} 3. d5 {[%emt 0:00:03]} e6 {[%emt 0:00:04]} 4. Nc3 {[%emt 0:00:07]} exd5 {[%emt 0:00:05]} 5. cxd5 {[%emt 0:00:03]} d6 {[%emt 0:00:05]} 6. Nf3 {[%emt 0:00:06]} g6 {[%emt 0:00:14]} 7. Bf4 {[%emt 0:00:04]} Bg7 {[%emt 0:02:10]} 8. Qa4+ {[%emt 0:00:06]} Qd7 {[%emt 0:17:01] A61: Modern Benoni: Nf3 without early e4.} (8... Bd7 $14 9. Qb3 Qc7) 9. Bxd6 {[%emt 0:14:46] White is much more active.} Qxa4 {[%emt 0:05:19]} 10. Nxa4 {[%emt 0:00:05]} Nxd5 {[%emt 0:02:34] White is better.} 11. O-O-O {[%emt 0:00:39]} (11. Bxc5 $6 Bd7 12. Rd1 Bxa4 $11) ({White should play} 11. e4 $16 Nb4 12. O-O-O (12. Nxc5 Nc2+ 13. Kd2 Nxa1 $15)) 11... Be6 $146 {[%emt 0:10:57]} (11... Nb6 $1 $14 12. Nxc5 Nc4) ({Predecessor:} 11... Nb4 12. a3 N4a6 13. Nxc5 Nxc5 14. Bxc5 Na6 15. Bd4 O-O 16. e3 Bf5 17. Bd3 Rac8+ {½-½ Volodin,A (2497)-Martel,E (2480) Titled Tuesday intern op 5th May blitz 2020 (2)}) 12. Nxc5 $18 {[%emt 0:03:37][%cal Oe2e4]} Nd7 {[%emt 0:12:47]} (12... Nc6 {keeps fighting.} 13. Nxe6 (13. Nxb7 Nde7 $18) 13... fxe6) 13. Nxe6 {[%emt 0:04:02]} ({Don't do} 13. Nxb7 N5b6 14. e3 Bxa2) 13... fxe6 {[%emt 0:02:31]} 14. e4 {[%emt 0:06:22]} N5f6 {[%emt 0:08:24]} 15. Bd3 {[%emt 0:02:42]} Ng4 {[%emt 0:03:41]} 16. Rhf1 {[%emt 0:01:43]} Nge5 {[%emt 0:04:54]} 17. Nxe5 {[%emt 0:01:03]} Nxe5 {[%emt 0:03:56]} 18. Bb5+ {[%emt 0:02:40] A strong pair of Bishops.} Nc6 {[%emt 0:03:09]} 19. f4 {[%emt 0:01:26] Black is weak on the dark squares} Rc8 {[%emt 0:04:18]} 20. Kb1 {[%emt 0:05:58] and f5 should not be overlooked} a6 {[%emt 0:00:57]} 21. Bxc6+ {[%emt 0:00:15]} Rxc6 {[%emt 0:00:21]} 22. f5 {[%emt 0:01:17]} gxf5 {[%emt 0:02:13]} (22... exf5 $16 23. exf5 Kf7 24. fxg6+ Kxg6) 23. exf5 {[%emt 0:00:06]} Bf8 {[%emt 0:02:44] Repels f6} (23... exf5 $142 24. Rxf5 Rc4 25. Re1+ Kd7) 24. Bg3 {[%emt 0:08:10]} (24. Be5 $18 Rg8 25. f6 Rxg2 26. f7+ Ke7 27. Bg3) 24... Bc5 {[%emt 0:04:55]} (24... exf5 $16 25. Rxf5 Be7) 25. Rfe1 {[%emt 0:03:52] Weighted Error Value: White=0.24 (precise) /Black=0.37  Mistake:       	White=2     	Black=5      OK:         	White=6     	Black=5} 1-0